[Event "Commonwealth Open 2019"]
[Site "Delhi"]
[Date "2019.07.01"]
[Round "3.29"]
[White "Reddy Rimitha R"]
[Black "Sneha Halder"]
[Result "0-1"]
[ECO "C01"]
[WhiteElo "1092"]
[BlackElo "1474"]
[Annotator "NA"]
[PlyCount "100"]
[EventDate "2019.06.30"]
[EventType "swiss"]
[EventCountry "IND"]
[SourceTitle "playchess.com"]
[Source "ChessBase"]
[SourceQuality "1"]
[TimeControl "5400+30"]

1. e4 {[%emt 0:00:00]} e6 {[%emt 0:02:27]} 2. d4 {[%emt 0:02:18]} d5 {[%emt 0:01:16]} 3. exd5 {[%emt 0:01:42]} exd5 {[%emt 0:02:01]} 4. Nf3 {[%emt 0:03:28]} Bd6 {[%emt 0:03:17]} 5. Nc3 {[%emt 0:01:13]} c6 {[%emt 0:02:20]} 6. Be3 {[%emt 0:01:44]} Ne7 {[%emt 0:02:47]} 7. Bd3 {[%emt 0:04:02]} Bg4 {[%emt 0:03:27]} 8. h3 {[%emt 0:00:33]} Bh5 {[%emt 0:00:36]} 9. Qe2 {[%emt 0:01:23]} Bb4 {[%emt 0:10:31]} 10. Bd2 {[%emt 0:02:30]} Nd7 {[%emt 0:03:53]} 11. a3 {[%emt 0:01:54]} Bd6 {[%emt 0:02:33]} 12. Be3 {[%emt 0:01:59]} Qb6 {[%emt 0:01:16]} 13. Na4 {[%emt 0:02:45]} Qa5+ {[%emt 0:02:34]} 14. Nc3 {[%emt 0:00:14]} Nf6 {[%emt 0:08:20]} 15. Bd2 {[%emt 0:06:06]} Qb6 {[%emt 0:14:03]} 16. Na4 {[%emt 0:00:38]} Bxf3 {[%emt 0:01:03]} 17. Nxb6 {[%emt 0:10:08]} Bxe2 {[%emt 0:00:10]} 18. Nxa8 {[%emt 0:00:20]} Bxd3 {[%emt 0:00:09]} 19. cxd3 {[%emt 0:00:06]} Kd7 {[%emt 0:00:42]} 20. Bg5 {[%emt 0:00:43]} Nh5 {[%emt 0:04:06]} 21. O-O {[%emt 0:00:43]} Rxa8 {[%emt 0:06:34]} 22. Rfe1 {[%emt 0:02:23]} f6 {[%emt 0:21:32]} 23. Bd2 {[%emt 0:20:24]} Nf4 {[%emt 0:02:16]} 24. Re3 {[%emt 0:01:33]} Nf5 {[%emt 0:00:17]} 25. Ree1 {[%emt 0:10:43]} Nxd3 {[%emt 0:01:33]} 26. Red1 {[%emt 0:02:24]} Nxd4 {[%emt 0:00:23]} 27. Bc3 {[%emt 0:00:44]} Ne2+ {[%emt 0:00:05]} 28. Kf1 {[%emt 0:02:29]} Nxc3 {[%emt 0:00:07]} 29. Rxd3 {[%emt 0:00:24]} Ne4 {[%emt 0:00:06]} 30. Re1 {[%emt 0:03:12]} Re8 {[%emt 0:00:05]} 31. Rde3 {[%emt 0:02:00]} Bc5 {[%emt 0:00:08]} 32. R3e2 {[%emt 0:00:31]} Bxf2 33. Rxf2 {[%emt 0:03:30]} Ng3+ {[%emt 0:00:38]} 34. Kg1 {[%emt 0:05:47]} Rxe1+ {[%emt 0:00:10]} 35. Kh2 {[%emt 0:00:42]} Ne4 {[%emt 0:00:08]} 36. Rc2 {[%emt 0:00:16]} d4 {[%emt 0:00:23]} 37. h4 {[%emt 0:00:15]} d3 {[%emt 0:00:11]} 38. Rc4 {[%emt 0:00:11]} c5 {[%emt 0:00:08]} 39. b4 {[%emt 0:00:05]} d2 {[%emt 0:00:07]} 40. bxc5 {[%emt 0:01:04]} d1=Q {[%emt 0:00:05]} 41. Rxe4 {[%emt 0:00:28]} Rxe4 {[%emt 0:00:27]} 42. c6+ {[%emt 0:00:03]} Kc7 {[%emt 0:00:09]} 43. a4 {[%emt 0:00:10]} Rxh4+ {[%emt 0:00:08]} 44. Kg3 {[%emt 0:00:02]} Qd4 {[%emt 0:00:07]} 45. Kf3 {[%emt 0:00:19]} Qd2 {[%emt 0:01:30]} 46. cxb7 {[%emt 0:00:16]} Kxb7 {[%emt 0:00:05]} 47. g3 {[%emt 0:00:04]} Rxa4 {[%emt 0:00:21]} 48. g4 {[%emt 0:00:08]} Qd3+ {[%emt 0:00:11]} 49. Kf2 {[%emt 0:00:05]} Ra2+ {[%emt 0:00:15]} 50. Ke1 {[%emt 0:00:05]} Qb1# {[%emt 0:00:15]} 0-1

[Event "Commonwealth Open 2019"]
[Site "Delhi"]
[Date "2019.07.01"]
[Round "3.30"]
[White "Sanikommu Manasvi"]
[Black "Sananda R"]
[Result "1-0"]
[ECO "C56"]
[WhiteElo "1353"]
[BlackElo "1081"]
[Annotator "NA"]
[PlyCount "105"]
[EventDate "2019.06.30"]
[EventType "swiss"]
[EventCountry "IND"]
[SourceTitle "playchess.com"]
[Source "ChessBase"]
[SourceQuality "1"]
[TimeControl "5400+30"]

1. e4 {[%emt 0:00:00]} e5 {[%emt 0:00:00]} 2. Nf3 {[%emt 0:00:00]} Nc6 {[%emt 0:00:03]} 3. d4 {[%emt 0:00:12]} exd4 {[%emt 0:00:25]} 4. Bc4 {[%emt 0:00:46]} Nf6 {[%emt 0:03:53]} 5. O-O {[%emt 0:00:59]} Nxe4 {[%emt 0:04:38]} 6. Re1 {[%emt 0:00:09]} d5 {[%emt 0:00:17]} 7. Bxd5 {[%emt 0:00:18]} Qxd5 {[%emt 0:00:34]} 8. Nc3 {[%emt 0:00:04]} Qh5 {[%emt 0:00:48]} 9. Nxe4 {[%emt 0:00:08]} Be6 {[%emt 0:00:18]} 10. Neg5 {[%emt 0:05:09]} Qg6 {[%emt 0:04:41]} 11. Nxe6 {[%emt 0:09:23]} fxe6 {[%emt 0:00:40]} 12. Qe2 {[%emt 0:04:59]} O-O-O 13. Qxe6+ {[%emt 0:00:56]} Qxe6 {[%emt 0:09:01]} 14. Rxe6 {[%emt 0:00:24]} Bd6 {[%emt 0:02:55]} 15. Bg5 {[%emt 0:15:15]} Rdf8 {[%emt 0:10:41]} 16. Bd2 {[%emt 0:02:25]} h6 {[%emt 0:03:32]} 17. h3 {[%emt 0:00:30]} g5 {[%emt 0:00:30]} 18. a3 {[%emt 0:03:33]} Rf5 {[%emt 0:09:57]} 19. Rae1 {[%emt 0:03:45]} Be7 {[%emt 0:06:43]} 20. b4 {[%emt 0:07:23]} h5 {[%emt 0:01:36]} 21. Ne5 {[%emt 0:06:27]} Bd6 {[%emt 0:15:09]} 22. Nxc6 {[%emt 0:06:11]} bxc6 {[%emt 0:01:37]} 23. Re8+ {[%emt 0:03:24]} Rxe8 {[%emt 0:00:36]} 24. Rxe8+ {[%emt 0:00:09]} Kd7 {[%emt 0:00:21]} 25. Rh8 {[%emt 0:00:24]} h4 {[%emt 0:02:28]} 26. Rh5 {[%emt 0:01:07]} Be7 {[%emt 0:00:25]} 27. f4 {[%emt 0:00:46]} c5 {[%emt 0:00:41]} 28. fxg5 {[%emt 0:01:59]} c4 {[%emt 0:03:35]} 29. Rxh4 {[%emt 0:02:03]} c5 {[%emt 0:04:11]} 30. Rg4 {[%emt 0:03:59]} c3 {[%emt 0:03:55]} 31. Bc1 {[%emt 0:01:39]} Rd5 {[%emt 0:01:47]} 32. g6 {[%emt 0:04:27]} d3 {[%emt 0:00:24]} 33. cxd3 {[%emt 0:02:08]} Bf6 {[%emt 0:00:20]} 34. g7 {[%emt 0:02:18]} Bxg7 {[%emt 0:00:29]} 35. Rxg7+ {[%emt 0:00:08]} Ke6 {[%emt 0:00:04]} 36. Rg6+ {[%emt 0:01:48]} Kf7 {[%emt 0:00:52]} 37. Rg3 {[%emt 0:01:19]} c4 {[%emt 0:00:21]} 38. Rf3+ {[%emt 0:00:46]} Ke6 {[%emt 0:00:08]} 39. dxc4 {[%emt 0:00:16]} Rd1+ {[%emt 0:00:32]} 40. Rf1 {[%emt 0:00:12]} Rd3 {[%emt 0:00:14]} 41. Kf2 {[%emt 0:00:45]} c2 {[%emt 0:00:14]} 42. Re1+ {[%emt 0:01:05]} Kd6 {[%emt 0:01:10]} 43. Ke2 {[%emt 0:00:44]} Rg3 {[%emt 0:01:06]} 44. Bf4+ {[%emt 0:00:07]} Kc6 {[%emt 0:00:03]} 45. Bxg3 {[%emt 0:00:07]} a6 {[%emt 0:00:03]} 46. Kd2 {[%emt 0:00:11]} c1=Q+ {[%emt 0:00:13]} 47. Kxc1 {[%emt 0:00:12]} a5 {[%emt 0:00:02]} 48. Re6+ {[%emt 0:00:14]} Kd7 {[%emt 0:00:09]} 49. Rd6+ {[%emt 0:00:04]} Ke7 {[%emt 0:00:05]} 50. c5 {[%emt 0:00:08]} axb4 {[%emt 0:00:03]} 51. c6 {[%emt 0:00:00]} Kf7 {[%emt 0:00:00]} 52. c7 {[%emt 0:00:00]} Kg7 {[%emt 0:00:00]} 53. c8=Q {[%emt 0:00:41] Kh8 Qc7 Kg8 Rd8#} 1-0

[Event "Commonwealth Open 2019"]
[Site "Delhi"]
[Date "2019.07.02"]
[Round "4.1"]
[White "Gupta, Abhijeet"]
[Black "Aravindh, Chithambaram Vr."]
[Result "1-0"]
[ECO "E90"]
[WhiteElo "2606"]
[BlackElo "2598"]
[Annotator "RC"]
[PlyCount "119"]
[EventDate "2019.06.30"]
[EventType "swiss"]
[EventCountry "IND"]
[SourceTitle "playchess.com"]
[Source "ChessBase"]
[SourceQuality "1"]
[TimeControl "5400+30"]

1. d4 {[%emt 0:01:14]} Nf6 {[%emt 0:00:00]} 2. c4 {[%emt 0:00:16]} g6 {[%emt 0:00:00]} 3. Nc3 {[%emt 0:00:37]} Bg7 {[%emt 0:00:00]} 4. e4 {[%emt 0:00:07]} d6 {[%emt 0:00:00]} 5. Nf3 {[%emt 0:01:04]} O-O {[%emt 0:00:07]} 6. h3 {[%emt 0:00:23]} e5 {[%emt 0:00:21]} 7. d5 {[%emt 0:00:04]} Nh5 {[%emt 0:00:12]} 8. g3 {[%emt 0:00:17]} a5 {[%emt 0:00:14]} 9. Be2 {[%emt 0:03:59]} Na6 {[%emt 0:00:48]} 10. Bg5 {[%emt 0:05:49]} f6 {[%emt 0:00:48]} 11. Be3 {[%emt 0:00:30]} f5 {[%emt 0:00:14]} 12. exf5 {[%emt 0:00:36]} gxf5 {[%emt 0:00:10]} 13. Bg5 {[%emt 0:00:56]} Qe8 {[%emt 0:04:35]} 14. Nh4 {[%emt 0:00:32]} Nf6 {[%emt 0:00:20]} 15. g4 {[%emt 0:02:37]} Ne4 {[%emt 0:21:42]} 16. Nxe4 {[%emt 0:00:51]} fxe4 {[%emt 0:00:04]} 17. Be3 {[%emt 0:01:09]} Nb4 {[%emt 0:09:32]} 18. Rg1 {[%emt 0:01:59]} Qe7 {[%emt 0:15:24]} 19. Nf5 {[%emt 0:04:14]} Bxf5 {[%emt 0:00:31]} 20. gxf5 {[%emt 0:00:04]} Rxf5 {[%emt 0:02:24]} 21. a3 {[%emt 0:08:00]} Nd3+ {[%emt 0:00:07]} 22. Bxd3 {[%emt 0:00:08]} exd3 {[%emt 0:00:05]} 23. Qxd3 {[%emt 0:00:20]} Raf8 {[%emt 0:13:05]} 24. O-O-O {[%emt 0:01:57]} Kh8 {[%emt 0:00:05]} 25. Rg4 {[%emt 0:01:32]} Qf6 {[%emt 0:04:45]} 26. Qd2 {[%emt 0:03:26]} Rh5 {[%emt 0:02:06]} 27. Rdg1 {[%emt 0:03:53]} Bh6 {[%emt 0:00:43]} 28. Kb1 {[%emt 0:18:37]} Rxh3 {[%emt 0:05:09]} 29. Qxa5 {[%emt 0:03:37]} b6 {[%emt 0:08:25]} 30. Qa7 {[%emt 0:01:47]} Bxe3 {[%emt 0:05:48]} 31. fxe3 {[%emt 0:00:22]} Qf7 {[%emt 0:00:05]} 32. Ka2 {[%emt 0:10:32]} Rh2 {[%emt 0:00:10]} 33. Qa4 {[%emt 0:02:15]} Rf2 {[%emt 0:00:29]} 34. Qd1 {[%emt 0:05:09]} Rf1 {[%emt 0:06:45]} 35. Rxf1 {[%emt 0:01:58]} Qxf1 {[%emt 0:00:02]} 36. Qxf1 {[%emt 0:00:06]} Rxf1 {[%emt 0:00:30]} 37. Kb3 {[%emt 0:00:03]} Rf2 {[%emt 0:00:53]} 38. Kc3 {[%emt 0:00:31]} Re2 {[%emt 0:00:48]} 39. e4 {[%emt 0:00:49]} Rh2 {[%emt 0:01:30]} 40. b3 {[%emt 0:00:23]} h5 {[%emt 0:00:12]} 41. Rg5 {[%emt 0:00:04]} Kh7 {[%emt 0:00:15]} 42. Kb4 {[%emt 0:00:02]} Kh6 {[%emt 0:00:04]} 43. Rg8 {[%emt 0:00:04]} Rb2 {[%emt 0:00:58]} 44. Kb5 {[%emt 0:00:57]} Rxb3+ {[%emt 0:00:40]} 45. Kc6 {[%emt 0:00:04]} b5 {[%emt 0:00:45]} 46. cxb5 {[%emt 0:01:17]} Rc3+ {[%emt 0:00:02]} 47. Kd7 {[%emt 0:00:04]} h4 {[%emt 0:00:18]} 48. a4 {[%emt 0:00:20]} Rc5 {[%emt 0:00:39]} 49. b6 {[%emt 0:01:42]} cxb6 {[%emt 0:00:04]} 50. Kxd6 {[%emt 0:00:03]} h3 {[%emt 0:01:19]} 51. Rh8+ {[%emt 0:01:00]} Kg5 {[%emt 0:00:05]} 52. Rxh3 {[%emt 0:01:39]} Kf4 {[%emt 0:00:03]} 53. Rh4+ {[%emt 0:00:22]} Kg5 {[%emt 0:00:06]} 54. Rh1 {[%emt 0:00:10]} Kf4 {[%emt 0:00:07]} 55. Ke6 {[%emt 0:00:19]} Ra5 {[%emt 0:01:02]} 56. d6 {[%emt 0:00:37]} Rxa4 {[%emt 0:00:06]} 57. d7 {[%emt 0:02:26]} Rd4 {[%emt 0:00:04]} 58. Rh4+ {[%emt 0:00:11]} Kf3 {[%emt 0:00:54]} 59. Rh5 {[%emt 0:00:52]} Kf4 {[%emt 0:01:10]} 60. Rf5+ {[%emt 0:00:15]} 1-0

[Event "Commonwealth Open 2019"]
[Site "Delhi"]
[Date "2019.07.02"]
[Round "4.2"]
[White "Thejkumar, M. S."]
[Black "Debashis, Das"]
[Result "0-1"]
[ECO "E15"]
[WhiteElo "2458"]
[BlackElo "2544"]
[Annotator "ChessBase"]
[PlyCount "100"]
[EventDate "2019.06.30"]
[EventType "swiss"]
[EventCountry "IND"]
[SourceTitle "playchess.com"]
[Source "ChessBase"]
[SourceQuality "1"]
[TimeControl "5400+30"]

1. d4 {[%emt 0:00:00]} Nf6 {[%emt 0:00:00]} 2. c4 {[%emt 0:00:46]} e6 {[%emt 0:00:00]} 3. Nf3 {[%emt 0:00:36]} b6 {[%emt 0:00:00]} 4. g3 {[%emt 0:00:34]} Ba6 {[%emt 0:00:00]} 5. b3 {[%emt 0:00:11]} Bb4+ {[%emt 0:00:01]} 6. Bd2 {[%emt 0:00:16]} Be7 {[%emt 0:00:05]} 7. Nc3 {[%emt 0:02:02]} d5 {[%emt 0:00:07]} 8. Ne5 {[%emt 0:05:29]} O-O {[%emt 0:00:21]} 9. Bg2 {[%emt 0:00:07]} c6 {[%emt 0:03:56]} 10. O-O {[%emt 0:00:43]} Nfd7 {[%emt 0:00:06]} 11. Nd3 {[%emt 0:01:36]} dxc4 {[%emt 0:01:28]} 12. bxc4 {[%emt 0:00:10]} Bxc4 {[%emt 0:00:24]} 13. Bf4 {[%emt 0:00:08]} a5 {[%emt 0:04:56]} 14. Rc1 {[%emt 0:10:17]} Ra7 {[%emt 0:01:35]} 15. Qd2 {[%emt 0:21:13]} b5 {[%emt 0:10:46]} 16. Rfd1 {[%emt 0:10:58]} b4 {[%emt 0:04:07]} 17. Na4 {[%emt 0:09:24]} Bb5 {[%emt 0:00:23]} 18. Qc2 {[%emt 0:00:43]} Bg5 {[%emt 0:06:10]} 19. Ne5 {[%emt 0:10:08]} Bxf4 {[%emt 0:05:53]} 20. gxf4 {[%emt 0:00:05]} Nf6 {[%emt 0:00:39]} 21. Nc5 {[%emt 0:01:56]} Nd5 {[%emt 0:02:35]} 22. e3 {[%emt 0:00:30]} Na6 {[%emt 0:13:01]} 23. a4 {[%emt 0:07:40]} bxa3 {[%emt 0:01:03]} 24. Qb3 {[%emt 0:00:08]} Nxc5 {[%emt 0:05:49]} 25. Rxc5 {[%emt 0:01:45]} a4 {[%emt 0:10:17]} 26. Qxa3 {[%emt 0:00:09]} Ra6 {[%emt 0:04:01]} 27. Ra1 {[%emt 0:09:16]} Ne7 {[%emt 0:05:21]} 28. Rcc1 {[%emt 0:01:21]} g6 {[%emt 0:02:46]} 29. Qc5 {[%emt 0:00:24]} Kg7 {[%emt 0:02:02]} 30. Ra3 {[%emt 0:00:31]} Re8 {[%emt 0:00:47]} 31. Nc4 {[%emt 0:02:16]} Nf5 {[%emt 0:01:42]} 32. Ne5 {[%emt 0:01:12]} Qh4 {[%emt 0:01:13]} 33. Qc3 {[%emt 0:01:30]} f6 {[%emt 0:01:29]} 34. Nd7 {[%emt 0:00:59]} Ra7 {[%emt 0:01:03]} 35. Nc5 {[%emt 0:00:14]} Qh5 {[%emt 0:00:34]} 36. e4 {[%emt 0:01:58]} Nh4 {[%emt 0:00:37]} 37. Qh3 {[%emt 0:00:11]} Rae7 {[%emt 0:01:46]} 38. Rg3 {[%emt 0:00:22]} Kh8 {[%emt 0:01:40]} 39. Bf1 {[%emt 0:00:38]} h6 {[%emt 0:02:25]} 40. Bg2 {[%emt 0:00:34]} g5 {[%emt 0:02:03]} 41. fxg5 {[%emt 0:00:34]} hxg5 {[%emt 0:00:30]} 42. f4 {[%emt 0:00:43]} gxf4 {[%emt 0:02:27]} 43. Rg4 {[%emt 0:00:30]} Rh7 {[%emt 0:00:03]} 44. Nd7 {[%emt 0:00:25]} Qf7 {[%emt 0:00:26]} 45. Rxh4 {[%emt 0:00:41]} Qxd7 {[%emt 0:00:04]} 46. Rxh7+ {[%emt 0:00:29]} Qxh7 {[%emt 0:00:04]} 47. Qg4 {[%emt 0:00:17]} Qh6 {[%emt 0:01:50]} 48. Rc5 {[%emt 0:00:10]} Rg8 {[%emt 0:00:26]} 49. Qf3 {[%emt 0:00:33]} Rg5 {[%emt 0:00:12]} 50. Rc2 {[%emt 0:00:36]} Qh5 {[%emt 0:00:46]} 0-1

[Event "Commonwealth Open 2019"]
[Site "Delhi"]
[Date "2019.07.02"]
[Round "4.3"]
[White "Erigaisi, Arjun"]
[Black "Shyaamnikhil, P."]
[Result "1/2-1/2"]
[ECO "E04"]
[WhiteElo "2526"]
[BlackElo "2434"]
[Annotator "ChessBase"]
[PlyCount "53"]
[EventDate "2019.06.30"]
[EventType "swiss"]
[EventCountry "IND"]
[SourceTitle "playchess.com"]
[Source "ChessBase"]
[SourceQuality "1"]
[TimeControl "5400+30"]

1. d4 {[%emt 0:00:00]} Nf6 {[%emt 0:00:00]} 2. c4 {[%emt 0:00:00]} e6 {[%emt 0:00:33]} 3. g3 {[%emt 0:00:00]} d5 {[%emt 0:05:07]} 4. Bg2 {[%emt 0:00:01]} dxc4 {[%emt 0:00:17]} 5. Nf3 {[%emt 0:00:09]} c5 {[%emt 0:00:04]} 6. O-O {[%emt 0:00:50]} Nc6 {[%emt 0:00:04]} 7. Qa4 {[%emt 0:00:50]} Bd7 {[%emt 0:00:53]} 8. Qxc4 {[%emt 0:00:10]} cxd4 {[%emt 0:00:18]} 9. Nxd4 {[%emt 0:01:03]} Rc8 {[%emt 0:00:09]} 10. Nc3 {[%emt 0:00:46]} Na5 {[%emt 0:09:48]} 11. Qd3 {[%emt 0:00:27]} Qb6 {[%emt 0:00:20]} 12. Bg5 {[%emt 0:28:27]} Nc4 {[%emt 0:08:17]} 13. Bxf6 {[%emt 0:27:45]} gxf6 {[%emt 0:00:53]} 14. Nb3 {[%emt 0:00:08]} Nxb2 {[%emt 0:09:19]} 15. Qf3 {[%emt 0:07:19]} f5 {[%emt 0:00:25]} 16. Rab1 {[%emt 0:01:38]} Bg7 {[%emt 0:10:45]} 17. Rxb2 {[%emt 0:01:45]} Rxc3 {[%emt 0:00:58]} 18. Qf4 {[%emt 0:01:01]} Qc7 {[%emt 0:03:31]} 19. Qd2 {[%emt 0:06:19]} O-O {[%emt 0:06:56]} 20. Nc5 {[%emt 0:06:25]} Qxc5 {[%emt 0:12:51]} 21. Qxd7 {[%emt 0:00:07]} Rc2 {[%emt 0:03:00]} 22. Rxb7 {[%emt 0:03:28]} Rxa2 {[%emt 0:00:40]} 23. Bf3 {[%emt 0:00:30]} Qd4 {[%emt 0:05:46]} 24. Rd1 {[%emt 0:00:35]} Ra1 {[%emt 0:01:23]} 25. Qxd4 {[%emt 0:00:07]} Bxd4 {[%emt 0:00:03]} 26. Rxa1 {[%emt 0:00:07]} Bxa1 {[%emt 0:00:03]} 27. Rxa7 {[%emt 0:00:07]} 1/2-1/2

[Event "Commonwealth Open 2019"]
[Site "Delhi"]
[Date "2019.07.02"]
[Round "4.4"]
[White "Tania, Sachdev"]
[Black "Swapnil, S. Dhopade"]
[Result "1/2-1/2"]
[ECO "A57"]
[WhiteElo "2401"]
[BlackElo "2488"]
[Annotator "ChessBase"]
[PlyCount "60"]
[EventDate "2019.06.30"]
[EventType "swiss"]
[EventCountry "IND"]
[SourceTitle "playchess.com"]
[Source "ChessBase"]
[SourceQuality "1"]
[TimeControl "5400+30"]

1. d4 {[%emt 0:03:21]} Nf6 {[%emt 0:00:00]} 2. c4 {[%emt 0:00:03]} c5 {[%emt 0:00:00]} 3. d5 {[%emt 0:00:04]} b5 {[%emt 0:00:00]} 4. cxb5 {[%emt 0:00:14]} a6 {[%emt 0:00:00]} 5. e3 {[%emt 0:00:13]} g6 {[%emt 0:00:00]} 6. Nc3 {[%emt 0:00:15]} Bg7 {[%emt 0:00:00]} 7. e4 {[%emt 0:00:27]} O-O {[%emt 0:04:45]} 8. e5 {[%emt 0:05:06]} Bb7 {[%emt 0:01:39]} 9. f4 {[%emt 0:00:51]} Ne8 {[%emt 0:05:05]} 10. Nf3 {[%emt 0:00:40]} d6 {[%emt 0:03:12]} 11. a4 {[%emt 0:00:30]} axb5 {[%emt 0:00:30]} 12. Bxb5 {[%emt 0:00:37]} Nc7 {[%emt 0:00:13]} 13. O-O {[%emt 0:30:53]} Nxb5 {[%emt 0:05:36]} 14. Nxb5 {[%emt 0:01:40]} dxe5 {[%emt 0:01:17]} 15. Nxe5 {[%emt 0:01:15]} Bxd5 {[%emt 0:02:52]} 16. Nc7 {[%emt 0:11:47]} Qxc7 {[%emt 0:01:44]} 17. Qxd5 {[%emt 0:00:03]} Na6 {[%emt 0:02:43]} 18. Be3 {[%emt 0:01:09]} e6 {[%emt 0:02:06]} 19. Qe4 {[%emt 0:00:48]} Rab8 {[%emt 0:06:00]} 20. Qc4 {[%emt 0:04:13]} Qc8 {[%emt 0:01:13]} 21. Nd3 {[%emt 0:06:58]} Rd8 {[%emt 0:22:28]} 22. Rf2 {[%emt 0:09:53]} Rd5 {[%emt 0:11:32]} 23. a5 {[%emt 0:07:41]} Qc6 24. Ne5 {[%emt 0:00:02]} Bxe5 {[%emt 0:18:37]} 25. fxe5 {[%emt 0:00:30]} Rxe5 {[%emt 0:00:05]} 26. Qc3 {[%emt 0:00:02]} Re4 {[%emt 0:04:12]} 27. Qf6 {[%emt 0:02:13]} Rxe3 {[%emt 0:00:05]} 28. Qxf7+ {[%emt 0:00:05]} Kh8 29. Qf6+ {[%emt 0:09:45]} Kg8 {[%emt 0:00:03]} 30. Qf7+ {[%emt 0:00:05]} Kh8 1/2-1/2

[Event "Commonwealth Open 2019"]
[Site "Delhi"]
[Date "2019.07.02"]
[Round "4.5"]
[White "Krishna, C R G"]
[Black "Ajay Karthikeyan"]
[Result "1/2-1/2"]
[ECO "A48"]
[WhiteElo "2481"]
[BlackElo "2216"]
[Annotator "ChessBase"]
[PlyCount "61"]
[EventDate "2019.06.30"]
[EventType "swiss"]
[EventCountry "IND"]
[SourceTitle "playchess.com"]
[Source "ChessBase"]
[SourceQuality "1"]
[TimeControl "5400+30"]

1. d4 {[%emt 0:00:00]} Nf6 {[%emt 0:07:53]} 2. Nf3 {[%emt 0:00:00]} g6 {[%emt 0:00:05]} 3. b4 {[%emt 0:00:00]} Bg7 {[%emt 0:00:29]} 4. Bb2 {[%emt 0:00:03]} O-O {[%emt 0:01:13]} 5. g3 {[%emt 0:00:03]} b6 {[%emt 0:03:49]} 6. Bg2 {[%emt 0:00:10]} Bb7 {[%emt 0:00:01]} 7. O-O {[%emt 0:00:19]} d6 {[%emt 0:00:39]} 8. c4 {[%emt 0:02:54]} Nbd7 {[%emt 0:00:30]} 9. Qc2 {[%emt 0:03:25]} Re8 {[%emt 0:07:17]} 10. Rd1 {[%emt 0:01:28]} c5 {[%emt 0:11:05]} 11. bxc5 {[%emt 0:24:42]} bxc5 {[%emt 0:00:48]} 12. d5 {[%emt 0:00:02]} Rb8 {[%emt 0:00:32]} 13. Nbd2 {[%emt 0:01:56]} e6 {[%emt 0:06:50]} 14. dxe6 {[%emt 0:05:35]} Rxe6 {[%emt 0:03:17]} 15. e3 {[%emt 0:12:45]} h6 {[%emt 0:02:28]} 16. Rab1 {[%emt 0:03:44]} Nb6 {[%emt 0:08:12]} 17. Bc3 {[%emt 0:07:05]} Qe8 {[%emt 0:03:46]} 18. Ne1 {[%emt 0:11:39]} Bc6 {[%emt 0:08:30]} 19. Rdc1 {[%emt 0:05:21]} Ne4 {[%emt 0:04:36]} 20. Bxg7 {[%emt 0:05:45]} Kxg7 {[%emt 0:00:33]} 21. Nd3 {[%emt 0:00:38]} Nxd2 {[%emt 0:01:46]} 22. Bxc6 {[%emt 0:03:12]} Qxc6 {[%emt 0:00:02]} 23. Qxd2 {[%emt 0:00:01]} g5 {[%emt 0:07:19]} 24. Rb3 {[%emt 0:00:26]} f6 {[%emt 0:02:04]} 25. Ne1 {[%emt 0:01:13]} Rd8 {[%emt 0:04:27]} 26. Qe2 {[%emt 0:03:36]} d5 {[%emt 0:04:51]} 27. cxd5 {[%emt 0:00:08]} Rxd5 {[%emt 0:00:44]} 28. Nd3 {[%emt 0:05:25]} Qd6 {[%emt 0:01:29]} 29. Nb2 {[%emt 0:00:02]} Rd2 {[%emt 0:00:46]} 30. Qf3 {[%emt 0:00:01]} Re7 {[%emt 0:00:25]} 31. Nc4 {[%emt 0:02:48]} 1/2-1/2

[Event "Commonwealth Open 2019"]
[Site "Delhi"]
[Date "2019.07.02"]
[Round "4.6"]
[White "Rathnakaran, K.."]
[Black "Kunte, Abhijit"]
[Result "1/2-1/2"]
[ECO "C77"]
[WhiteElo "2338"]
[BlackElo "2478"]
[Annotator "ChessBase"]
[PlyCount "60"]
[EventDate "2019.06.30"]
[EventType "swiss"]
[EventCountry "IND"]
[SourceTitle "playchess.com"]
[Source "ChessBase"]
[SourceQuality "1"]
[TimeControl "5400+30"]

1. e4 {[%emt 0:00:00]} e5 {[%emt 0:00:00]} 2. Nf3 {[%emt 0:00:00]} Nc6 {[%emt 0:00:00]} 3. Bb5 {[%emt 0:00:00]} a6 {[%emt 0:00:14]} 4. Ba4 {[%emt 0:00:00]} Nf6 {[%emt 0:00:07]} 5. Qe2 {[%emt 0:00:04]} b5 {[%emt 0:02:05]} 6. Bb3 {[%emt 0:00:07]} Be7 {[%emt 0:00:04]} 7. c3 {[%emt 0:00:09]} d6 {[%emt 0:01:21]} 8. d3 {[%emt 0:00:12]} O-O {[%emt 0:04:04]} 9. Nbd2 {[%emt 0:00:06]} Be6 {[%emt 0:06:18]} 10. Bxe6 {[%emt 0:00:39]} fxe6 {[%emt 0:00:07]} 11. Nf1 {[%emt 0:00:04]} Nh5 {[%emt 0:02:37]} 12. Ng5 {[%emt 0:04:15]} Bxg5 {[%emt 0:08:07]} 13. Qxh5 {[%emt 0:00:15]} Bxc1 {[%emt 0:00:14]} 14. Rxc1 {[%emt 0:00:06]} Qe8 {[%emt 0:00:39]} 15. Qxe8 {[%emt 0:00:06]} Raxe8 {[%emt 0:00:13]} 16. Ne3 {[%emt 0:00:10]} Ne7 {[%emt 0:00:37]} 17. Ke2 {[%emt 0:00:20]} c5 {[%emt 0:00:07]} 18. Rhf1 {[%emt 0:00:13]} Nc6 {[%emt 0:00:37]} 19. g3 {[%emt 0:00:06]} g5 {[%emt 0:00:49]} 20. Ng2 {[%emt 0:00:06]} Rf6 {[%emt 0:00:26]} 21. h4 {[%emt 0:00:08]} h6 {[%emt 0:00:28]} 22. hxg5 {[%emt 0:00:05]} hxg5 {[%emt 0:00:03]} 23. Ne3 {[%emt 0:00:06]} Kg7 {[%emt 0:00:09]} 24. Rh1 {[%emt 0:00:08]} Rh6 {[%emt 0:00:29]} 25. Rxh6 {[%emt 0:00:08]} Kxh6 {[%emt 0:00:04]} 26. Rh1+ {[%emt 0:00:05]} Kg7 {[%emt 0:00:04]} 27. Rh5 {[%emt 0:00:06]} Kg6 {[%emt 0:00:05]} 28. Rh1 {[%emt 0:00:02]} Kg7 {[%emt 0:00:06]} 29. Rh5 {[%emt 0:00:03]} Kg6 {[%emt 0:00:05]} 30. Rh1 {[%emt 0:00:04]} Kg7 1/2-1/2